[Event "Early-Titled-Tuesday-Blitz-April-23-2024"]
[Site "Chess.com"]
[Date "2024.04.23"]
[Round "7"]
[White "eagleclaw07"]
[Black "goodluck06"]
[Result "0-1"]
[WhiteElo "2861"]
[BlackElo "2692"]
[TimeControl "180+1"]
[EndTime "9:23:21 PDT"]
[Termination "goodluck06 won by resignation"]

1. d4 {[%clk 0:02:59.6]} 1... Nf6 {[%clk 0:02:55.8]} 2. c4 {[%clk 0:03:00.5]}
2... c6 {[%clk 0:02:52.2]} 3. Nf3 {[%clk 0:02:59.4]} 3... d5 {[%clk 0:02:52.8]}
4. e3 {[%clk 0:02:59.6]} 4... e6 {[%clk 0:02:50.6]} 5. Nc3 {[%clk 0:02:58.8]}
5... Nbd7 {[%clk 0:02:47.6]} 6. Bd3 {[%clk 0:02:57.5]} 6... dxc4 {[%clk
0:02:44.5]} 7. Bxc4 {[%clk 0:02:58.4]} 7... b5 {[%clk 0:02:44.9]} 8. Bd3 {[%clk
0:02:57.3]} 8... Bd6 {[%clk 0:02:44.5]} 9. e4 {[%clk 0:02:56.3]} 9... e5 {[%clk
0:02:43.8]} 10. O-O {[%clk 0:02:54.9]} 10... O-O {[%clk 0:02:43.7]} 11. d5
{[%clk 0:02:52.8]} 11... cxd5 {[%clk 0:02:07.7]} 12. Nxb5 {[%clk 0:02:50.5]}
12... Nc5 {[%clk 0:02:04.6]} 13. Nxd6 {[%clk 0:02:40.5]} 13... Qxd6 {[%clk
0:02:03.9]} 14. Bc2 {[%clk 0:02:27.7]} 14... Ncxe4 {[%clk 0:01:58.9]} 15. Re1
{[%clk 0:02:26.5]} 15... Qe6 {[%clk 0:01:36.3]} 16. Ng5 {[%clk 0:02:21.2]} 16...
Nxg5 {[%clk 0:01:32.1]} 17. Bxg5 {[%clk 0:02:22.1]} 17... Bb7 {[%clk 0:01:26.9]}
18. Bf4 {[%clk 0:02:16.6]} 18... Ne4 {[%clk 0:01:22.1]} 19. Be3 {[%clk
0:01:59.7]} 19... f5 {[%clk 0:01:20.8]} 20. f3 {[%clk 0:01:57.6]} 20... Nf6
{[%clk 0:01:15.6]} 21. Bd4 {[%clk 0:01:57.4]} 21... e4 {[%clk 0:01:16]} 22. Bb3
{[%clk 0:01:56.3]} 22... Kh8 {[%clk 0:01:12.4]} 23. Rc1 {[%clk 0:01:55.1]} 23...
Rac8 {[%clk 0:01:10]} 24. Bxa7 {[%clk 0:01:49]} 24... f4 {[%clk 0:00:46.1]} 25.
Bd4 {[%clk 0:01:39]} 25... e3 {[%clk 0:00:45.4]} 26. Qd3 {[%clk 0:01:37.4]}
26... Ba6 {[%clk 0:00:41.7]} 27. Qb1 {[%clk 0:01:32.8]} 27... Bc4 {[%clk
0:00:41.2]} 28. Bxc4 {[%clk 0:01:29.5]} 28... dxc4 {[%clk 0:00:41.3]} 29. a4
{[%clk 0:01:15]} 29... Nd5 {[%clk 0:00:34.7]} 30. a5 {[%clk 0:01:09.6]} 30...
Nb4 {[%clk 0:00:34.5]} 31. Re2 {[%clk 0:01:01.5]} 31... Nd3 {[%clk 0:00:29.4]}
32. Rd1 {[%clk 0:01:01.3]} 32... Rfd8 {[%clk 0:00:24.8]} 33. Bc3 {[%clk
0:01:00.5]} 33... Nf2 {[%clk 0:00:22.2]} 34. Rf1 {[%clk 0:00:41.4]} 34... Nd3
{[%clk 0:00:20.2]} 35. Qa2 {[%clk 0:00:35.4]} 35... Rd6 {[%clk 0:00:19.7]} 36.
Qa4 {[%clk 0:00:35.1]} 36... Qg6 {[%clk 0:00:13.4]} 37. Rd1 {[%clk 0:00:29.6]}
37... h5 {[%clk 0:00:13.3]} 38. Qb5 {[%clk 0:00:22.4]} 38... Rcd8 {[%clk
0:00:09.3]} 39. Ra1 {[%clk 0:00:12.1]} 39... Nf2 {[%clk 0:00:05.9]} 40. a6
{[%clk 0:00:06.9]} 40... Rd1+ {[%clk 0:00:05.9]} 41. Re1 {[%clk 0:00:07.6]}
41... Rxa1 {[%clk 0:00:05.2]} 42. Rxa1 {[%clk 0:00:07.5]} 42... Nh3+ {[%clk
0:00:05.2]} 43. Kh1 {[%clk 0:00:06.8]} 43... Qd6 {[%clk 0:00:05.3]} 44. Qxh5+
{[%clk 0:00:05]} 44... Kg8 {[%clk 0:00:05.4]} 45. gxh3 {[%clk 0:00:04.7]} 45...
e2 {[%clk 0:00:03.5]} 46. Qg4 {[%clk 0:00:04.4]} 46... Qd1+ {[%clk 0:00:03.5]}
47. Qg1 {[%clk 0:00:05.2]} 47... Qxa1 {[%clk 0:00:02.9]} 48. Qxa1 {[%clk
0:00:03.8]} 48... Rd1+ {[%clk 0:00:03.6]} 49. Kg2 {[%clk 0:00:01.5]} 49... Rxa1
{[%clk 0:00:04]} 50. Kf2 {[%clk 0:00:01.9]} 50... Rxa6 {[%clk 0:00:04.7]} 51.
Kxe2 {[%clk 0:00:02.6]} 51... Rh6 {[%clk 0:00:05.3]} 52. Bd2 {[%clk 0:00:02.1]}
52... Rxh3 {[%clk 0:00:05.8]} 53. Bxf4 {[%clk 0:00:02.8]} 53... Kf7 {[%clk
0:00:05.3]} 54. Ke3 {[%clk 0:00:02.7]} 54... Ke6 {[%clk 0:00:02.2]} 55. Bg3
{[%clk 0:00:02.6]} 55... Rh5 {[%clk 0:00:02]} 56. Kd4 {[%clk 0:00:02.9]} 56...
Rb5 {[%clk 0:00:02.5]} 57. Kxc4 {[%clk 0:00:02.6]} 57... Rxb2 {[%clk 0:00:03.2]}
58. Kd4 {[%clk 0:00:03.3]} 58... Rg2 {[%clk 0:00:03.7]} 59. Ke4 {[%clk
0:00:03.8]} 59... Kf6 {[%clk 0:00:04]} 60. Kf4 {[%clk 0:00:04.3]} 60... Kf7
{[%clk 0:00:04.6]} 61. Kg5 {[%clk 0:00:04.7]} 61... Ra2 {[%clk 0:00:05.1]} 62.
Kf5 {[%clk 0:00:05.2]} 62... Ra4 {[%clk 0:00:05.7]} 63. Kg5 {[%clk 0:00:05.4]}
63... g6 {[%clk 0:00:06.3]} 64. Bf4 {[%clk 0:00:04.6]} 64... Ra2 {[%clk
0:00:05.9]} 65. Kg4 {[%clk 0:00:04.7]} 65... Rg2+ {[%clk 0:00:06]} 66. Bg3
{[%clk 0:00:05.3]} 66... Re2 {[%clk 0:00:06.5]} 67. Bh4 {[%clk 0:00:05.1]} 67...
Ke6 {[%clk 0:00:06.6]} 68. Kg5 {[%clk 0:00:04.9]} 68... Rg2+ {[%clk 0:00:07.3]}
69. Bg3 {[%clk 0:00:05.5]} 69... Kf7 {[%clk 0:00:06.9]} 70. Kg4 {[%clk
0:00:04.2]} 70... Rd2 {[%clk 0:00:06.4]} 71. Kg5 {[%clk 0:00:04.3]} 71... Rd5+
{[%clk 0:00:06.9]} 72. Kf4 {[%clk 0:00:05]} 72... Rf5+ {[%clk 0:00:07.4]} 73.
Ke4 {[%clk 0:00:05.7]} 73... Ke6 {[%clk 0:00:08.1]} 74. Bf4 {[%clk 0:00:05.9]}
74... Kf6 {[%clk 0:00:08.1]} 75. Bg3 {[%clk 0:00:06.4]} 75... Kg5 {[%clk
0:00:08.3]} 76. Bf2 {[%clk 0:00:06.5]} 76... Rf7 {[%clk 0:00:07]} 77. Bg3 {[%clk
0:00:06.8]} 77... Re7+ {[%clk 0:00:07.5]} 78. Kd5 {[%clk 0:00:07.3]} 78... Kf5
{[%clk 0:00:08]} 79. Kd4 {[%clk 0:00:07.5]} 79... Re2 {[%clk 0:00:07.8]} 80. Kd3
{[%clk 0:00:07.8]} 80... Re8 {[%clk 0:00:08.1]} 81. Kd4 {[%clk 0:00:08.3]} 81...
Ra8 {[%clk 0:00:07.1]} 82. Ke3 {[%clk 0:00:07.3]} 82... Ra3+ {[%clk 0:00:07.6]}
83. Kf2 {[%clk 0:00:07.5]} 83... Ke6 {[%clk 0:00:07.9]} 84. Bf4 {[%clk
0:00:07.1]} 84... Kd5 {[%clk 0:00:07.9]} 85. Kg3 {[%clk 0:00:07.6]} 85... Ra4
{[%clk 0:00:06.7]} 86. Kg4 {[%clk 0:00:06.4]} 86... Ke6 {[%clk 0:00:07.1]} 87.
Kg5 {[%clk 0:00:06.5]} 87... Kf7 {[%clk 0:00:06.4]} 88. Be5 {[%clk 0:00:06.7]}
88... Ra5 {[%clk 0:00:05.9]} 89. f4 {[%clk 0:00:04.6]} 89... Rb5 {[%clk
0:00:04.8]} 90. h3 {[%clk 0:00:03.6]} 90... Rb1 {[%clk 0:00:04.7]} 91. Kg4
{[%clk 0:00:02.3]} 91... Rg1+ {[%clk 0:00:05.1]} 92. Kf3 {[%clk 0:00:03.2]}
92... Ke6 {[%clk 0:00:05.5]} 93. h4 {[%clk 0:00:02.9]} 93... Kf5 {[%clk
0:00:05]} 94. Kf2 {[%clk 0:00:03.5]} 94... Rh1 {[%clk 0:00:05.4]} 95. Kg3 {[%clk
0:00:04.1]} 95... Rg1+ {[%clk 0:00:05.5]} 96. Kh3 {[%clk 0:00:04.8]} 96... Rg4
{[%clk 0:00:05.6]} 97. Bd6 {[%clk 0:00:04.4]} 97... Rg1 {[%clk 0:00:05.4]} 98.
Be5 {[%clk 0:00:04.6]} 98... Rd1 {[%clk 0:00:05.7]} 99. Kg3 {[%clk 0:00:03.8]}
99... Rd3+ {[%clk 0:00:06.1]} 100. Kf2 {[%clk 0:00:04]} 100... Kg4 {[%clk
0:00:06.7]} 101. Bf6 {[%clk 0:00:04.2]} 101... Rf3+ {[%clk 0:00:06.7]} 102. Kg2
{[%clk 0:00:04.1]} 102... Rxf4 {[%clk 0:00:07.3]} 103. Bg5 {[%clk 0:00:05]}
103... Ra4 {[%clk 0:00:07.2]} 104. Bf6 {[%clk 0:00:05.1]} 104... Ra2+ {[%clk
0:00:07.6]} 105. Kg1 {[%clk 0:00:05.5]} 105... Kg3 {[%clk 0:00:05.3]} 106. Kh1
{[%clk 0:00:04.6]} 106... Rh2+ {[%clk 0:00:05.1]} 107. Kg1 {[%clk 0:00:05.2]}
107... Rc2 {[%clk 0:00:04.5]} 108. Bg5 {[%clk 0:00:04.3]} 108... Rb2 {[%clk
0:00:03.9]} 109. Kf1 {[%clk 0:00:04.8]} 109... Rb5 {[%clk 0:00:03.8]} 110. Ke2
{[%clk 0:00:04.6]} 110... Kg4 {[%clk 0:00:04.4]} 111. Bf6 {[%clk 0:00:03.6]}
111... Rh5 {[%clk 0:00:04.9]} 112. Ke3 {[%clk 0:00:03.2]} 112... Rxh4 {[%clk
0:00:05.4]} 113. Bxh4 {[%clk 0:00:02.2]} 113... Kxh4 {[%clk 0:00:05.6]} 114. Kf3
{[%clk 0:00:03.1]} 114... g5 {[%clk 0:00:04.4]} 115. Kf2 {[%clk 0:00:03.2]}
115... Kh3 {[%clk 0:00:04.3]} 116. Kf1 {[%clk 0:00:03.2]} 116... g4 {[%clk
0:00:02.4]} 117. Kg1 {[%clk 0:00:04.1]} 117... Kg3 {[%clk 0:00:02.9]} 118. Kh1
{[%clk 0:00:04.6]} 118... Kf2 {[%clk 0:00:03.3]} 119. Kh2 {[%clk 0:00:05.2]}
119... g3+ {[%clk 0:00:03.8]} 120. Kh3 {[%clk 0:00:05.7]} 120... g2 {[%clk
0:00:04.3]} 0-1

[Event "Early-Titled-Tuesday-Blitz-April-23-2024"]
[Site "Chess.com"]
[Date "2024.04.23"]
[Round "7"]
[White "AradNazari"]
[Black "MatthewG-p4p"]
[Result "1/2-1/2"]
[WhiteElo "2741"]
[BlackElo "2898"]
[TimeControl "180+1"]
[EndTime "9:24:27 PDT"]
[Termination "Game drawn by 50-move rule"]

1. c4 {[%clk 0:02:53.6]} 1... c5 {[%clk 0:02:56.9]} 2. Nc3 {[%clk 0:02:39.9]}
2... g6 {[%clk 0:02:56.3]} 3. e4 {[%clk 0:02:40.1]} 3... Bg7 {[%clk 0:02:56.4]}
4. g3 {[%clk 0:02:40.5]} 4... Nc6 {[%clk 0:02:56.7]} 5. Bg2 {[%clk 0:02:40.8]}
5... e6 {[%clk 0:02:56.5]} 6. Nge2 {[%clk 0:02:40.9]} 6... Nge7 {[%clk
0:02:57.1]} 7. O-O {[%clk 0:02:40.3]} 7... O-O {[%clk 0:02:57.2]} 8. a3 {[%clk
0:02:40.7]} 8... d6 {[%clk 0:02:55.7]} 9. Rb1 {[%clk 0:02:40.9]} 9... a5 {[%clk
0:02:55.5]} 10. d3 {[%clk 0:02:40.1]} 10... Rb8 {[%clk 0:02:49.3]} 11. Be3
{[%clk 0:02:38.6]} 11... Nd4 {[%clk 0:02:50]} 12. f4 {[%clk 0:02:33.9]} 12...
Nec6 {[%clk 0:02:42.1]} 13. Bf2 {[%clk 0:02:32.2]} 13... b5 {[%clk 0:02:36.6]}
14. Nxd4 {[%clk 0:02:27.8]} 14... Nxd4 {[%clk 0:02:36.6]} 15. Nxb5 {[%clk
0:02:24.9]} 15... Nxb5 {[%clk 0:02:36.6]} 16. cxb5 {[%clk 0:02:24.6]} 16... Rxb5
{[%clk 0:02:37.5]} 17. d4 {[%clk 0:02:03.5]} 17... cxd4 {[%clk 0:02:35.9]} 18.
Bxd4 {[%clk 0:02:03.4]} 18... e5 {[%clk 0:02:35.3]} 19. Bc3 {[%clk 0:01:42.4]}
19... exf4 {[%clk 0:02:17.9]} 20. Bxg7 {[%clk 0:01:33]} 20... Kxg7 {[%clk
0:02:18.8]} 21. Rxf4 {[%clk 0:01:08.4]} 21... Qe7 {[%clk 0:02:08.7]} 22. Rf2
{[%clk 0:00:53.6]} 22... Qe5 {[%clk 0:02:05.9]} 23. Qd3 {[%clk 0:00:45.8]} 23...
Be6 {[%clk 0:02:02.4]} 24. Rd2 {[%clk 0:00:29.2]} 24... Rb6 {[%clk 0:01:32.1]}
25. b4 {[%clk 0:00:20]} 25... Rfb8 {[%clk 0:01:30.2]} 26. Qd4 {[%clk 0:00:11.9]}
26... Qxd4+ {[%clk 0:01:13.6]} 27. Rxd4 {[%clk 0:00:12.8]} 27... Kf6 {[%clk
0:01:14.4]} 28. Rbd1 {[%clk 0:00:12.1]} 28... axb4 {[%clk 0:01:13]} 29. Rxb4
{[%clk 0:00:12.5]} 29... Rxb4 {[%clk 0:01:11.4]} 30. axb4 {[%clk 0:00:13.1]}
30... Ke5 {[%clk 0:01:07.9]} 31. Rb1 {[%clk 0:00:13.8]} 31... Ba2 {[%clk
0:01:01.3]} 32. Rb2 {[%clk 0:00:13.7]} 32... Bc4 {[%clk 0:01:01.9]} 33. Kf2
{[%clk 0:00:13.7]} 33... Kd4 {[%clk 0:01:00.9]} 34. Rd2+ {[%clk 0:00:13.9]}
34... Ke5 {[%clk 0:01:01.1]} 35. Rb2 {[%clk 0:00:14.3]} 35... Bb5 {[%clk
0:00:59.6]} 36. Ke3 {[%clk 0:00:10.4]} 36... Ra8 {[%clk 0:00:57.4]} 37. Rd2
{[%clk 0:00:06.5]} 37... Ra3+ {[%clk 0:00:56.7]} 38. Kf2 {[%clk 0:00:07]} 38...
Ke6 {[%clk 0:00:39.7]} 39. Bh3+ {[%clk 0:00:02.8]} 39... Ke7 {[%clk 0:00:40.2]}
40. Rb2 {[%clk 0:00:01.9]} 40... Ra1 {[%clk 0:00:29.8]} 41. Bg2 {[%clk
0:00:02.1]} 41... Rc1 {[%clk 0:00:29.5]} 42. Bf3 {[%clk 0:00:02.5]} 42... Rc3
{[%clk 0:00:16.1]} 43. Be2 {[%clk 0:00:02.4]} 43... Bc6 {[%clk 0:00:16.9]} 44.
b5 {[%clk 0:00:02]} 44... Bxe4 {[%clk 0:00:16.5]} 45. b6 {[%clk 0:00:02.7]}
45... Bb7 {[%clk 0:00:17.1]} 46. Ra2 {[%clk 0:00:03]} 46... Rb3 {[%clk
0:00:13.4]} 47. Ra7 {[%clk 0:00:03.4]} 47... Rxb6 {[%clk 0:00:14.1]} 48. Bf3
{[%clk 0:00:04.1]} 48... Rb2+ {[%clk 0:00:14.3]} 49. Kg1 {[%clk 0:00:04.1]}
49... Rb1+ {[%clk 0:00:08.4]} 50. Kf2 {[%clk 0:00:04.7]} 50... Rb2+ {[%clk
0:00:08.8]} 51. Ke1 {[%clk 0:00:05.5]} 51... Rxh2 {[%clk 0:00:08]} 52. Rxb7+
{[%clk 0:00:05.7]} 52... Kf6 {[%clk 0:00:08.6]} 53. Bd5 {[%clk 0:00:06.3]} 53...
Rh3 {[%clk 0:00:09.3]} 54. Kf2 {[%clk 0:00:06.1]} 54... Rh2+ {[%clk 0:00:09.2]}
55. Kf3 {[%clk 0:00:05.9]} 55... Ke5 {[%clk 0:00:09.7]} 56. Bxf7 {[%clk
0:00:06]} 56... Rh1 {[%clk 0:00:09.6]} 57. Bb3 {[%clk 0:00:05.3]} 57... Rc1
{[%clk 0:00:09.1]} 58. Rb5+ {[%clk 0:00:05.2]} 58... Kf6 {[%clk 0:00:09.3]} 59.
Rb6 {[%clk 0:00:05]} 59... Ke5 {[%clk 0:00:09.1]} 60. Rb5+ {[%clk 0:00:05.6]}
60... Kf6 {[%clk 0:00:09.4]} 61. Rb7 {[%clk 0:00:06.5]} 61... Ke5 {[%clk
0:00:09]} 62. Bg8 {[%clk 0:00:05.5]} 62... h5 {[%clk 0:00:09.1]} 63. Bf7 {[%clk
0:00:05.1]} 63... Kf6 {[%clk 0:00:07.4]} 64. Be8 {[%clk 0:00:05.7]} 64... Re1
{[%clk 0:00:05.5]} 65. Bc6 {[%clk 0:00:05.1]} 65... Rc1 {[%clk 0:00:05.4]} 66.
Be4 {[%clk 0:00:03.3]} 66... Rc3+ {[%clk 0:00:05.8]} 67. Kf2 {[%clk 0:00:03.8]}
67... g5 {[%clk 0:00:06.5]} 68. Rb5 {[%clk 0:00:03.7]} 68... Rc5 {[%clk
0:00:01.4]} 69. Rb6 {[%clk 0:00:03.6]} 69... Ke5 {[%clk 0:00:01.9]} 70. Bf3
{[%clk 0:00:04.1]} 70... h4 {[%clk 0:00:02.7]} 71. g4 {[%clk 0:00:03.8]} 71...
Rc2+ {[%clk 0:00:02.1]} 72. Be2 {[%clk 0:00:04.3]} 72... Rc3 {[%clk 0:00:03]}
73. Rb5+ {[%clk 0:00:04.5]} 73... d5 {[%clk 0:00:03.8]} 74. Bf3 {[%clk
0:00:02.8]} 74... Rd3 {[%clk 0:00:04.5]} 75. Ke2 {[%clk 0:00:02.9]} 75... Rd4
{[%clk 0:00:05.2]} 76. Ke3 {[%clk 0:00:03.2]} 76... h3 {[%clk 0:00:05.8]} 77.
Rb7 {[%clk 0:00:03.4]} 77... Ra4 {[%clk 0:00:05.8]} 78. Re7+ {[%clk 0:00:04]}
78... Kd6 {[%clk 0:00:05.8]} 79. Rh7 {[%clk 0:00:04.7]} 79... d4+ {[%clk
0:00:06]} 80. Ke4 {[%clk 0:00:04.5]} 80... Ra3 {[%clk 0:00:05.5]} 81. Rxh3
{[%clk 0:00:04.4]} 81... Kc5 {[%clk 0:00:04.5]} 82. Bg2 {[%clk 0:00:02.6]} 82...
Ra2 {[%clk 0:00:03.8]} 83. Bf1 {[%clk 0:00:03]} 83... Rf2 {[%clk 0:00:04.1]} 84.
Bd3 {[%clk 0:00:02.8]} 84... Rf4+ {[%clk 0:00:04.7]} 85. Ke5 {[%clk 0:00:03.4]}
85... Rxg4 {[%clk 0:00:05.6]} 86. Rh8 {[%clk 0:00:03.6]} 86... Rg3 {[%clk
0:00:06.2]} 87. Rc8+ {[%clk 0:00:04]} 87... Kb6 {[%clk 0:00:07]} 88. Kxd4 {[%clk
0:00:04.2]} 88... Rg1 {[%clk 0:00:06.6]} 89. Rg8 {[%clk 0:00:03.8]} 89... Kc7
{[%clk 0:00:06.4]} 90. Rg6 {[%clk 0:00:04.2]} 90... Kd7 {[%clk 0:00:06.6]} 91.
Bf5+ {[%clk 0:00:03.9]} 91... Kc7 {[%clk 0:00:06.5]} 92. Be4 {[%clk 0:00:04]}
92... Kd7 {[%clk 0:00:05.3]} 93. Ke5 {[%clk 0:00:04.5]} 93... Re1 {[%clk
0:00:04.2]} 94. Kd5 {[%clk 0:00:03.7]} 94... Ke7 {[%clk 0:00:04.2]} 95. Rxg5
{[%clk 0:00:03.8]} 95... Kf6 {[%clk 0:00:05]} 96. Rg6+ {[%clk 0:00:04.4]} 96...
Kf7 {[%clk 0:00:05.5]} 97. Rb6 {[%clk 0:00:04.8]} 97... Ke7 {[%clk 0:00:05.6]}
98. Ke5 {[%clk 0:00:05.4]} 98... Ke8 {[%clk 0:00:05.8]} 99. Rb7 {[%clk
0:00:05.9]} 99... Re2 {[%clk 0:00:05.9]} 100. Rh7 {[%clk 0:00:06.4]} 100... Re1
{[%clk 0:00:06.1]} 101. Kd5 {[%clk 0:00:06.9]} 101... Kf8 {[%clk 0:00:06.7]}
102. Bf5 {[%clk 0:00:07.1]} 102... Re7 {[%clk 0:00:07.1]} 103. Rh6 {[%clk
0:00:05.9]} 103... Kg7 {[%clk 0:00:07.6]} 104. Rg6+ {[%clk 0:00:06.3]} 104...
Kf7 {[%clk 0:00:08.3]} 105. Rb6 {[%clk 0:00:04.6]} 105... Kg7 {[%clk 0:00:09]}
106. Be6 {[%clk 0:00:04.8]} 106... Kf6 {[%clk 0:00:09.6]} 107. Bg8+ {[%clk
0:00:04.2]} 107... Kf5 {[%clk 0:00:08.5]} 108. Be6+ {[%clk 0:00:03.2]} 108...
Kf6 {[%clk 0:00:06.3]} 109. Rc6 {[%clk 0:00:03.9]} 109... Ra7 {[%clk 0:00:05.7]}
110. Bc8+ {[%clk 0:00:04.1]} 110... Ke7 {[%clk 0:00:05.8]} 111. Rc5 {[%clk
0:00:03.3]} 111... Ra1 {[%clk 0:00:05.5]} 112. Bf5 {[%clk 0:00:03.1]} 112...
Rd1+ {[%clk 0:00:05.4]} 113. Ke5 {[%clk 0:00:03.6]} 113... Re1+ {[%clk
0:00:06.3]} 114. Be4 {[%clk 0:00:04.2]} 114... Ke8 {[%clk 0:00:07]} 115. Rc6
{[%clk 0:00:03.4]} 115... Ke7 {[%clk 0:00:07.3]} 116. Rc7+ {[%clk 0:00:03.7]}
116... Ke8 {[%clk 0:00:07.6]} 117. Ra7 {[%clk 0:00:04.4]} 117... Re2 {[%clk
0:00:07.8]} 118. Kd5 {[%clk 0:00:03.8]} 118... Kf8 {[%clk 0:00:08.1]} 119. Bd3
{[%clk 0:00:03.1]} 119... Re7 {[%clk 0:00:09]} 120. Ra8+ {[%clk 0:00:03.4]}
120... Kg7 {[%clk 0:00:09.5]} 121. Kd6 {[%clk 0:00:04.2]} 121... Re3 {[%clk
0:00:09.5]} 122. Bf5 {[%clk 0:00:04.7]} 122... Kf6 {[%clk 0:00:09.9]} 123. Bd7
{[%clk 0:00:04.2]} 123... Rd3+ {[%clk 0:00:09.7]} 124. Kc7 {[%clk 0:00:04.9]}
124... Rc3+ {[%clk 0:00:10.5]} 125. Bc6 {[%clk 0:00:05.6]} 125... Rc1 {[%clk
0:00:10.8]} 126. Rf8+ {[%clk 0:00:06.1]} 126... Kg7 {[%clk 0:00:10.9]} 127. Re8
{[%clk 0:00:06.5]} 127... Kf7 {[%clk 0:00:10.6]} 128. Re2 {[%clk 0:00:07.1]}
128... Kf6 {[%clk 0:00:11.1]} 129. Kd6 {[%clk 0:00:07.7]} 129... Rd1+ {[%clk
0:00:08.5]} 130. Bd5 {[%clk 0:00:08.3]} 130... Ra1 {[%clk 0:00:09.2]} 131. Rf2+
{[%clk 0:00:08.3]} 131... Kg5 {[%clk 0:00:09.9]} 132. Ke6 {[%clk 0:00:08.9]}
132... Ra5 {[%clk 0:00:09.6]} 133. Ke5 {[%clk 0:00:09.3]} 133... Rb5 {[%clk
0:00:09]} 134. Rg2+ {[%clk 0:00:09.9]} 134... Kh5 {[%clk 0:00:09.6]} 135. Rg8
{[%clk 0:00:08.7]} 135... Ra5 {[%clk 0:00:10]} 136. Ke4 {[%clk 0:00:06.1]}
136... Kh6 {[%clk 0:00:10.2]} 137. Rg1 {[%clk 0:00:06.2]} 137... Rb5 {[%clk
0:00:09.7]} 138. Be6 {[%clk 0:00:06.4]} 138... Rg5 {[%clk 0:00:09.8]} 139. Rf1
{[%clk 0:00:04.4]} 139... Kg7 {[%clk 0:00:10.1]} 140. Bf5 {[%clk 0:00:04.2]}
140... Kf6 {[%clk 0:00:09.3]} 141. Rf2 {[%clk 0:00:03.6]} 141... Kg7 {[%clk
0:00:08.2]} 142. Ke5 {[%clk 0:00:03.8]} 142... Rg1 {[%clk 0:00:08.3]} 143. Rb2
{[%clk 0:00:02.5]} 143... Re1+ {[%clk 0:00:08.1]} 144. Be4 {[%clk 0:00:03.3]}
144... Kf7 {[%clk 0:00:08.6]} 145. Rb7+ {[%clk 0:00:03.7]} 1/2-1/2

[Event "Early-Titled-Tuesday-Blitz-April-23-2024"]
[Site "Chess.com"]
[Date "2024.04.23"]
[Round "8"]
[White "bazar-wokzal"]
[Black "ubdip"]
[Result "1-0"]
[WhiteElo "2589"]
[BlackElo "2383"]
[TimeControl "180+1"]
[EndTime "9:26:40 PDT"]
[Termination "bazar-wokzal won by resignation"]

1. e4 {[%clk 0:02:56.8]} 1... c5 {[%clk 0:03:00.1]} 2. c3 {[%clk 0:02:56.5]}
2... Nc6 {[%clk 0:02:56.5]} 3. d4 {[%clk 0:02:56.1]} 3... cxd4 {[%clk
0:02:55.9]} 4. cxd4 {[%clk 0:02:57]} 4... d5 {[%clk 0:02:56.2]} 5. exd5 {[%clk
0:02:56.8]} 5... Qxd5 {[%clk 0:02:56.5]} 6. Nf3 {[%clk 0:02:57.4]} 6... Bg4
{[%clk 0:02:52.2]} 7. Nc3 {[%clk 0:02:56.5]} 7... Qa5 {[%clk 0:02:48]} 8. d5
{[%clk 0:02:55.8]} 8... Nb8 {[%clk 0:02:36.3]} 9. Qb3 {[%clk 0:02:52.6]} 9...
Qb6 {[%clk 0:02:25.7]} 10. Ne5 {[%clk 0:02:49.1]} 10... Bc8 {[%clk 0:02:19.6]}
11. Be3 {[%clk 0:02:45.5]} 11... Qxb3 {[%clk 0:02:17.9]} 12. axb3 {[%clk
0:02:44.9]} 12... a6 {[%clk 0:02:10.9]} 13. Nb5 {[%clk 0:02:41.4]} 1-0

[Event "Early-Titled-Tuesday-Blitz-April-23-2024"]
[Site "Chess.com"]
[Date "2024.04.23"]
[Round "8"]
[White "Skatchkov_V"]
[Black "Golubovsky"]
[Result "0-1"]
[WhiteElo "2659"]
[BlackElo "2532"]
[TimeControl "180+1"]
[EndTime "9:27:58 PDT"]
[Termination "Golubovsky won by resignation"]

1. d4 {[%clk 0:03:00.9]} 1... Nf6 {[%clk 0:02:59.4]} 2. c4 {[%clk 0:03:00.8]}
2... e6 {[%clk 0:02:59.7]} 3. Nf3 {[%clk 0:03:00.7]} 3... d5 {[%clk 0:02:58.9]}
4. g3 {[%clk 0:03:01.1]} 4... dxc4 {[%clk 0:02:59.4]} 5. Bg2 {[%clk 0:03:01.6]}
5... Be7 {[%clk 0:02:57.3]} 6. O-O {[%clk 0:03:01.3]} 6... O-O {[%clk
0:02:57.9]} 7. Qc2 {[%clk 0:02:52.8]} 7... a6 {[%clk 0:02:56.2]} 8. a4 {[%clk
0:02:53.3]} 8... Nbd7 {[%clk 0:02:54.6]} 9. Qxc4 {[%clk 0:02:51.5]} 9... b5
{[%clk 0:02:49.9]} 10. Qc2 {[%clk 0:02:50.1]} 10... Bb7 {[%clk 0:02:43.2]} 11.
Bf4 {[%clk 0:02:50]} 11... Nd5 {[%clk 0:02:40.5]} 12. Bd2 {[%clk 0:02:46.8]}
12... c5 {[%clk 0:02:40.6]} 13. dxc5 {[%clk 0:02:42.2]} 13... Nxc5 {[%clk
0:02:32.1]} 14. axb5 {[%clk 0:02:31.1]} 14... axb5 {[%clk 0:02:31.8]} 15. Nc3
{[%clk 0:02:31.7]} 15... Nb4 {[%clk 0:02:01.1]} 16. Rxa8 {[%clk 0:02:30.4]}
16... Bxa8 {[%clk 0:01:51.1]} 17. Qc1 {[%clk 0:02:29.7]} 17... Nb3 {[%clk
0:01:43.3]} 18. Qd1 {[%clk 0:02:16.7]} 18... Bxf3 {[%clk 0:01:41.1]} 19. Qxb3
{[%clk 0:02:16]} 19... Bxg2 {[%clk 0:01:39.5]} 20. Rd1 {[%clk 0:02:16.6]} 20...
Bd5 {[%clk 0:01:36.5]} 21. Nxd5 {[%clk 0:02:13.5]} 21... Qxd5 {[%clk 0:01:34.4]}
22. Qf3 {[%clk 0:02:12.7]} 0-1

[Event "Early-Titled-Tuesday-Blitz-April-23-2024"]
[Site "Chess.com"]
[Date "2024.04.23"]
[Round "8"]
[White "DvaHrasta"]
[Black "x-7171385435"]
[Result "1-0"]
[WhiteElo "2420"]
[BlackElo "2152"]
[TimeControl "180+1"]
[EndTime "9:28:04 PDT"]
[Termination "DvaHrasta won by resignation"]

1. c4 {[%clk 0:03:00.9]} 1... e6 {[%clk 0:02:56.4]} 2. g3 {[%clk 0:03:00.7]}
2... d5 {[%clk 0:02:56.3]} 3. d4 {[%clk 0:03:00.9]} 3... Nf6 {[%clk 0:02:56.7]}
4. Bg2 {[%clk 0:03:01.1]} 4... dxc4 {[%clk 0:02:56.7]} 5. Na3 {[%clk 0:02:58.8]}
5... Bxa3 {[%clk 0:02:55.8]} 6. Qa4+ {[%clk 0:02:57.8]} 6... Nbd7 {[%clk
0:02:52.6]} 7. Qxa3 {[%clk 0:02:55.5]} 7... a6 {[%clk 0:02:50.2]} 8. Nf3 {[%clk
0:02:48.9]} 8... Rb8 {[%clk 0:02:40.8]} 9. Bg5 {[%clk 0:02:40.3]} 9... b5 {[%clk
0:02:40.5]} 10. Ne5 {[%clk 0:02:31.9]} 10... h6 {[%clk 0:02:24.7]} 11. Nc6
{[%clk 0:02:27.3]} 11... hxg5 {[%clk 0:02:24.8]} 12. Nxd8 {[%clk 0:02:27.2]}
12... Kxd8 {[%clk 0:02:25.3]} 13. O-O {[%clk 0:02:24.3]} 13... g4 {[%clk
0:02:15.4]} 14. Rad1 {[%clk 0:02:19]} 14... b4 {[%clk 0:02:08.1]} 15. Qe3 {[%clk
0:02:13.2]} 15... Nb6 {[%clk 0:02:03.2]} 16. Qg5 {[%clk 0:02:09.2]} 16... Rh7
{[%clk 0:02:00.7]} 17. e4 {[%clk 0:02:07.5]} 17... Bb7 {[%clk 0:01:59.6]} 18. e5
{[%clk 0:02:02.1]} 18... Rh5 {[%clk 0:01:59.7]} 19. Qf4 {[%clk 0:01:57.4]} 19...
Nfd5 {[%clk 0:01:49.5]} 20. Qxf7 {[%clk 0:01:54.4]} 1-0